fUST/lending_fUST_20251103
["ID","MTS","AMOUNT","RATE_DAILY","PERIOD"]
[392936605,1762156518365,500.0,0.00037445,60]
[392936606,1762156518827,151.0,0.00037445,60]
[392936607,1762156519429,500.0,0.00037445,60]
[392936608,1762156519505,156.587,0.00037445,60]
[392936609,1762156519697,500.0,0.00037445,60]
[392936610,1762156519810,500.0,0.00037445,60]
[392936611,1762156519924,500.0,0.00037445,60]
[392936612,1762156519969,500.0,0.00037445,60]
[392936613,1762156520064,500.0,0.00037445,60]
[392936614,1762156520113,162.380719,0.00037445,60]
[392936615,1762156520158,500.0,0.00037445,60]
[392936616,1762156520197,500.0,0.00037445,60]
[392936617,1762156520309,500.0,0.00037445,60]
[392936618,1762156520540,500.0,0.00037445,60]
[392936619,1762156520745,168.3888056,0.00037445,60]
[392936620,1762156520788,500.0,0.00037445,60]
[392936621,1762156521044,500.0,0.00037445,60]
[392936622,1762156521304,500.0,0.00037445,60]
[392936623,1762156521388,174.61919141,0.00037445,60]
[392936624,1762156521494,500.0,0.00037445,60]
[392936625,1762156522023,181.08010149,0.00037445,60]
[392936626,1762156522643,187.78006525,0.00037445,60]
[392936627,1762156523290,194.72792766,0.00037445,60]
[392936628,1762156523981,201.93286099,0.00037445,60]
[392936629,1762156524606,209.40437684,0.00037445,60]
[392936630,1762156525236,217.15233878,0.00037445,60]
[392936631,1762156525836,225.18697532,0.00037445,60]
[392936632,1762156526185,500.0,0.00037445,60]
[392936633,1762156526420,500.0,0.00037445,60]
[392936634,1762156526527,500.0,0.00037445,60]
[392936635,1762156526575,500.0,0.00037445,60]
[392936636,1762156526677,500.0,0.00037445,60]
[392936637,1762156526792,500.0,0.00037445,60]
[392936638,1762156526828,500.0,0.00037445,60]
[392936639,1762156526864,500.0,0.00037445,60]
[392936640,1762156526905,233.51889341,0.00037445,60]
[392936641,1762156526941,500.0,0.00037445,60]
[392936642,1762156527046,500.0,0.00037445,60]
[392936643,1762156527085,500.0,0.00037445,60]
[392936644,1762156527123,500.0,0.00037445,60]
[392936645,1762156527161,500.0,0.00037445,60]
[392936646,1762156527257,500.0,0.00037445,60]
[392936647,1762156527301,500.0,0.00037445,60]
[392936648,1762156527344,500.0,0.00037445,60]
[392936649,1762156527422,500.0,0.00037445,60]
[392936650,1762156527489,500.0,0.00037445,60]
[392936651,1762156527625,500.0,0.00037445,60]
[392936652,1762156527667,493.76490501,0.00037445,60]
[392936653,1762156527719,500.0,0.00037445,60]
[392936654,1762156527983,511.97405741,0.00037445,60]
[392936655,1762156528027,242.15909246,0.00037445,60]
[392936656,1762156528194,500.0,0.00037445,60]
[392936657,1762156528693,251.11897888,0.00037445,60]
[392936658,1762156528739,503.34584586,0.00037445,60]
[392936659,1762156529390,500.0,0.00037445,60]
[392936660,1762156529553,500.0,0.00037445,60]
[392936661,1762156529608,500.0,0.00037445,60]
[392936662,1762156529710,500.0,0.00037445,60]
[392936663,1762156529781,500.0,0.00037445,60]
[392936664,1762156529883,500.0,0.00037445,60]
[392936665,1762156529950,193.24448187,0.00037445,60]
[392936666,1762156530013,2.04219798,0.00037445,60]
[392936675,1762157276770,260.574083,0.0003287,120]
[392936704,1762157431758,-150.0,0.00019954,2]
[392936706,1762157431768,-150.0,0.00020926,2]
[392936721,1762157431890,-401.2,0.00021,5]
[392936723,1762157431906,-500.0,0.00021,2]
[392936725,1762157431915,-150.0,0.00021769,2]
[392936727,1762157431924,-177.0,0.00022925,2]
[392936729,1762157431933,-94.30147886,0.00023583,2]
[392936731,1762157431944,-69.49852114,0.00023583,2]
[392936733,1762157431954,-300.0,0.00024049,2]
[392936735,1762157431962,-300.0,0.00024049,2]
[392936737,1762157431971,-284.0,0.00024049,2]
[392936739,1762157431980,-1200.0,0.00024049,2]
[392936741,1762157431989,-160.0,0.0002405,2]
[392936743,1762157431998,-160.0,0.0002405,2]
[392936745,1762157432007,-2629.0277757,0.0002405,2]
[392936747,1762157432016,-215.5439539,0.00024405,2]
[392936749,1762157432025,-204.0,0.00024926,2]
[392936751,1762157432034,-418.39035401,0.00025,6]
[392936753,1762157432043,-183.97471818,0.000251,2]
[392936755,1762157432052,-500.0,0.00025173,2]
[392936757,1762157432061,-404.18480381,0.00025191,2]
[392936759,1762157432070,-1200.0,0.000252,2]
[392936760,1762157432079,-50000.0,0.000252,2]
[392936762,1762157432088,-152.8,0.000252,2]
[392936764,1762157432097,-193.28519372,0.000252,2]
[392936766,1762157432106,-250.0,0.000252,2]
[392936768,1762157432115,-471.0,0.00025202,2]
[392936771,1762157432125,-9841.74267493,0.00025204,2]
[392936772,1762157432134,-1284.08968736,0.00025204,2]
[392936774,1762157432148,-6934.6560141,0.00025377,2]
[392936776,1762157432157,-218.4,0.00025397,2]
[392936778,1762157432166,-193.4759496,0.00025657,2]
[392936780,1762157432175,-420.0,0.00026079,2]
[392936782,1762157432186,-1680.0,0.00026198,2]
[392936785,1762157432196,-500.0,0.00026896,2]
[392936787,1762157432205,-379.42440938,0.00026896,2]
[392936789,1762157432214,-412.0,0.00026899,2]
[392936791,1762157432225,-231.0,0.00026926,2]
[392936793,1762157432235,-500.0,0.00026999,2]
[392936795,1762157432244,-500.0,0.00026999,2]
[392936797,1762157432253,-500.0,0.00026999,2]
[392936799,1762157432262,-1000.0,0.00026999,2]
[392936801,1762157432271,-1000.0,0.00026999,2]
[392936803,1762157432280,-1000.0,0.00026999,2]
[392936805,1762157432289,-1000.0,0.00026999,2]
[392936807,1762157432298,-1000.0,0.00026999,2]
[392936808,1762157432307,-1000.0,0.00026999,2]
[392936811,1762157432317,-1266.84925978,0.00027073,2]
[392936812,1762157432330,-273.0,0.00027211,2]
[392936815,1762157432340,-480.0,0.00027294,2]
[392936817,1762157432349,-280.09028136,0.00027665,2]
[392936818,1762157432359,-1266.84925978,0.00028097,2]
[392936820,1762157432368,-1000.0,0.00028099,2]
[392936823,1762157432377,-258.0,0.00028926,2]
[392936825,1762157432387,-327.59,0.00029025,2]
[392936827,1762157432396,-1266.84925978,0.00029122,3]
[392936828,1762157432405,-300.2062138,0.00029169,2]
[392936830,1762157432414,-1266.84925978,0.00030146,3]
[392936832,1762157432423,-229.043,0.00030723,27]
[392936834,1762157432432,-382.19,0.00030839,2]
[392936836,1762157432441,-285.0,0.00030926,2]
[392936837,1762157432451,-614.6,0.0003116,10]
[392936839,1762157432460,-1266.84925978,0.0003117,4]
[392936840,1762157432470,-171.04759573,0.00031218,30]
[392936842,1762157432480,-1804.96587132,0.00032094,2]
[392936843,1762157432489,-356.27,0.00032174,10]
[392936844,1762157432498,-15104.0048655,0.00032184,2]
[392936845,1762157432507,-1266.84925978,0.00032194,4]
[392936846,1762157432517,-436.79,0.00032653,2]
[392936847,1762157432527,-300.0,0.000328,2]
[392936848,1762157432536,-300.0,0.000328,2]
[392936849,1762157432546,-300.0,0.000328,2]
[392936850,1762157432555,-300.0,0.000328,2]
[392936851,1762157432564,-300.0,0.000328,2]
[392936852,1762157432573,-300.0,0.000328,2]
[392936853,1762157432583,-300.0,0.000328,2]
[392936854,1762157432593,-300.0,0.000328,2]
[392936855,1762157432602,-300.0,0.000328,2]
[392936856,1762157432611,-300.0,0.000328,2]
[392936857,1762157432623,-300.0,0.000328,2]
[392936858,1762157432632,-300.0,0.000328,2]
[392936859,1762157432641,-300.0,0.000328,2]
[392936860,1762157432651,-300.0,0.000328,2]
[392936861,1762157432660,-300.0,0.000328,2]
[392936862,1762157432670,-300.0,0.000328,2]
[392936863,1762157432679,-300.0,0.000328,2]
[392936864,1762157432688,-300.0,0.000328,2]
[392936865,1762157432698,-300.0,0.000328,2]
[392936866,1762157432707,-300.0,0.000328,2]
[392936867,1762157432716,-5000.0,0.00032877,120]
[392936868,1762157432725,-5000.0,0.00032877,120]
[392936869,1762157432735,-5000.0,0.00032877,120]
[392936870,1762157432744,-156.0,0.00032885,2]
[392936871,1762157432754,-985.0,0.00032885,2]
[392936872,1762157432763,-2164.0,0.00032885,2]
[392936873,1762157432772,-627.0,0.00032885,2]
[392936874,1762157432781,-633.17,0.000329,7]
[392936875,1762157432790,-274.96975715,0.00032926,120]
[392936876,1762157432799,-1804.96587132,0.00033145,2]
[392936877,1762157432808,-1266.84925978,0.00033218,5]
[392936878,1762157432817,-1804.96587132,0.00034197,2]
[392936879,1762157432828,-1266.84925978,0.00034242,5]
[392936880,1762157432837,-491.39,0.00034467,2]
[392936881,1762157432846,-1804.96587132,0.00035248,2]
[392936882,1762157432856,-1266.84925978,0.00035266,6]
[392936883,1762157432866,-1479.00015327,0.00035529,5]
[392936884,1762157432875,-174.0,0.00035648,120]
[392936885,1762157432885,-174.0,0.00035665,2]
[392936886,1762157432894,-1180.23994236,0.00035749,2]
[392936887,1762157432903,-1000.0,0.00035801,7]
[392936888,1762157432912,-546.944,0.00035885,2]
[392936889,1762157432922,-172.0,0.00035924,2]
[392936890,1762157432931,-15104.0048655,0.0003597,3]
[392936891,1762157432940,-500.0,0.00035973,4]
[392936892,1762157432949,-30208.0097311,0.0003598,3]
[392936893,1762157432958,-100000.0,0.0003599,2]
[392936894,1762157432967,-1180.23994236,0.00036087,2]
[392936895,1762157432976,-200.0,0.00036145,120]
[392936896,1762157432985,-174.0,0.0003616,2]
[392936897,1762157432994,-1408.035,0.00036208,120]
[392936898,1762157433003,-2800.37511576,0.00036209,2]
[392936899,1762157433012,-545.99,0.00036281,2]
[392936900,1762157433022,-1268.11610904,0.00036291,7]
[392936901,1762157433031,-1804.96587132,0.00036299,2]
[392936902,1762157433040,-60416.0194622,0.0003632,3]
[392936903,1762157433049,-187341.46678763,0.0003633,2]
[392936904,1762157433059,-151.0,0.0003633,2]
[392936905,1762157433068,-590.484171,0.0003633,31]
[392936906,1762157433079,-590.484171,0.0003633,31]
[392936907,1762157433088,-590.484171,0.0003633,31]
[392936908,1762157433098,-590.484171,0.0003633,31]
[392936909,1762157433107,-1180.23994236,0.00036358,2]
[392936910,1762157433116,-15104.0048655,0.00036389,3]
[392936911,1762157433126,-590.484171,0.00036399,31]
[392936912,1762157433137,-590.484171,0.00036399,31]
[392936913,1762157433147,-590.484171,0.00036399,31]
[392936914,1762157433156,-590.484171,0.00036399,31]
[392936915,1762157433166,-90624.0291933,0.00036399,3]
[392936916,1762157433175,-590.484171,0.00036409,31]
[392936917,1762157433185,-590.484171,0.00036409,31]
[392936918,1762157433194,-590.484171,0.00036409,31]
[392936919,1762157433203,-590.484171,0.00036409,31]
[392936920,1762157433215,-685000.0,0.00036409,2]
[392936921,1762157433224,-1000.0,0.00036521,4]
[392936922,1762157433233,-1000.0,0.00036623,7]
[392936923,1762157433243,-1180.23994236,0.00036646,2]
[392936924,1762157433252,-200.0,0.00036688,120]
[392936925,1762157433262,-172.0,0.00036689,7]
[392936926,1762157433271,-1560.93513349,0.00036716,2]
[392936927,1762157433280,-500.0,0.00036721,4]
[392936928,1762157433290,-500.0,0.00036721,4]
[392936929,1762157433299,-200.0,0.00036735,120]
[392936930,1762157433308,-500.0,0.00036776,4]
[392936931,1762157433317,-500.0,0.00036776,4]
[392936932,1762157433327,-172.0,0.00036776,120]
[392936933,1762157433337,-2800.37511576,0.00036793,2]
[392936934,1762157433346,-1180.23994236,0.00036809,2]
[392936935,1762157433356,-500.0,0.00036831,4]
[392936936,1762157433366,-500.0,0.00036831,4]
[392936937,1762157433375,-500.0,0.00036885,4]
[392936938,1762157433384,-500.0,0.00036885,4]
[392936939,1762157433393,-172.0,0.00036886,7]
[392936940,1762157433403,-633.17,0.000369,7]
[392936941,1762157433412,-500.0,0.0003694,4]
[392936942,1762157433422,-500.0,0.0003694,4]
[392936943,1762157433431,-933.13808619,0.00036986,2]
[392936944,1762157433440,-3728.8197924,0.00036986,2]
[392936945,1762157433450,-557.15201504,0.00036986,2]
[392936946,1762157433460,-2228.60806016,0.00036986,2]
[392936947,1762157433470,-5014.36813537,0.00036986,2]
[392936948,1762157433480,-8914.43224066,0.00036986,2]
[392936949,1762157433489,-1180.23994236,0.00036988,2]
[392936950,1762157433499,-500.0,0.00036995,4]
[392936951,1762157433509,-500.0,0.00036995,4]
[392936952,1762157433519,-200.0,0.00036996,120]
[392936953,1762157433533,-172.0,0.00037046,7]
[392936954,1762157433543,-500.0,0.0003705,4]
[392936955,1762157433552,-514.76579544,0.0003705,4]
[392936956,1762157433562,-1560.93513349,0.00037052,2]
[392936957,1762157433571,-172.0,0.00037097,2]
[392936958,1762157433580,-500.0,0.00037105,4]
[392936959,1762157433589,-500.0,0.00037159,4]
[392936960,1762157433598,-180.59,0.0003719,17]
[392936961,1762157433608,-500.0,0.00037214,4]
[392936962,1762157433618,-49151.872729,0.00037238,2]
[392936963,1762157433628,-3478.8490202,0.00037238,2]
[392936964,1762157433637,-3367.5300889,0.00037238,2]
[392936965,1762157433646,-174.0,0.00037261,7]
[392936966,1762157433656,-500.0,0.00037269,4]
[392936967,1762157433665,-500.0,0.00037324,4]
[392936968,1762157433674,-8006.97748608,0.00037377,2]
[392936969,1762157433685,-2800.37511576,0.00037377,2]
[392936970,1762157433697,-624.0,0.00037379,4]
[392936971,1762157433706,-500.0,0.00037391,120]
[392936972,1762157433716,-9460.42,0.000374,14]
[392936973,1762157433725,-250.0,0.000374,14]
[392936974,1762157433734,-250.0,0.000374,14]
[392936975,1762157433743,-250.0,0.000374,14]
[392936976,1762157433753,-3055.49,0.000374,14]
[392936977,1762157433763,-187.84,0.000374,30]
[392936978,1762157433772,-1150.0,0.000374,11]
[392936979,1762157433782,-1531.183462,0.000374,24]
[392936980,1762157433792,-3000.0,0.000374,60]
[392936981,1762157433801,-3424.02,0.00037416,30]
[392936982,1762157433811,-199.89,0.0003743,30]
[392936983,1762157433820,-3877.46035573,0.00037445,4]
[392936984,1762157433830,-1000.0,0.00037445,7]
[392936985,1762157433840,-168.0,0.00037449,2]
[392936986,1762157433850,-150.8,0.00037452,60]
[392936987,1762157433859,-1621.32,0.00037455,60]
[392936988,1762157433868,-504.79400394,0.00037487,7]
[392936989,1762157433877,-590.484171,0.0003749,31]
[392936990,1762157433887,-590.484171,0.0003749,31]
[392936991,1762157433978,-590.484171,0.0003749,31]
[392936992,1762157433988,-590.484171,0.0003749,31]
[392936993,1762157433998,-590.484171,0.0003749,31]
[392936994,1762157434007,-590.484171,0.0003749,31]
[392936995,1762157434016,-590.484171,0.0003749,31]
[392936996,1762157434025,-590.48416195,0.0003749,31]
[392936997,1762157434035,-76572.53073232,0.0003749,2]
[392936998,1762157434044,-1168.33191359,0.0003749,15]
[392936999,1762157434053,-36898.59970874,0.0003749,2]
[392937000,1762157434062,-1323.15,0.0003749,2]
[392937001,1762157434074,-1323.15,0.0003749,2]
[392937002,1762157434083,-1323.15,0.0003749,2]
[392937003,1762157434092,-1323.15,0.0003749,2]
[392937004,1762157434101,-1323.15,0.0003749,2]
[392937005,1762157434111,-1323.15,0.0003749,2]
[392937006,1762157434120,-1323.15,0.0003749,2]
[392937007,1762157434129,-1323.15,0.0003749,2]
[392937008,1762157434141,-1323.15,0.0003749,2]
[392937009,1762157434151,-1323.15,0.0003749,2]
[392937010,1762157434160,-1323.15,0.0003749,2]
[392937011,1762157434169,-1323.15,0.0003749,2]
[392937012,1762157434178,-1323.15,0.0003749,2]
[392937013,1762157434188,-1323.15,0.0003749,2]
[392937014,1762157434197,-1323.15,0.0003749,2]
[392937015,1762157434206,-1323.15,0.0003749,2]
[392937016,1762157434219,-1323.15,0.0003749,2]
[392937017,1762157434228,-1323.15,0.0003749,2]
[392937018,1762157434237,-1323.15,0.0003749,2]
[392937019,1762157434246,-1323.15,0.0003749,2]
[392937020,1762157434255,-1323.15,0.0003749,2]
[392937021,1762157434264,-1323.15,0.0003749,2]
[392937022,1762157434274,-1323.15,0.0003749,2]
[392937023,1762157434283,-1323.35592942,0.0003749,2]
[392937024,1762157434293,-501.79543448,0.0003749,2]
[392937025,1762157434302,-500.0,0.0003749,7]
[392937026,1762157434311,-500.0,0.0003749,7]
[392937027,1762157434321,-500.0,0.0003749,7]
[392937028,1762157434331,-506.241247,0.0003749,7]
[392937029,1762157434340,-500.0,0.0003749,3]
[392937030,1762157434349,-500.0,0.0003749,3]
[392937031,1762157434358,-500.0,0.0003749,3]
[392937032,1762157434368,-500.0,0.0003749,3]
[392937033,1762157434377,-500.0,0.0003749,3]
[392937034,1762157434387,-302.89155288,0.0003749,3]
[392937035,1762157434396,-500.0,0.0003749,10]
[392937036,1762157434405,-500.0,0.0003749,10]
[392937037,1762157434414,-500.0,0.0003749,10]
[392937038,1762157434423,-500.0,0.0003749,10]
[392937039,1762157434432,-500.0,0.0003749,10]
[392937040,1762157434442,-500.0,0.0003749,10]
[392937041,1762157434451,-500.0,0.0003749,10]
[392937042,1762157434460,-500.0,0.0003749,10]
[392937043,1762157434470,-500.0,0.0003749,10]
[392937044,1762157434479,-500.0,0.0003749,10]
[392937045,1762157434488,-500.0,0.0003749,10]
[392937046,1762157434498,-500.0,0.0003749,10]
[392937047,1762157434507,-503.91629018,0.0003749,10]
[392937048,1762157434516,-501.62058132,0.0003749,14]
[392937049,1762157434525,-500.0,0.0003749,7]
[392937050,1762157434535,-500.0,0.0003749,7]
[392937051,1762157434544,-500.0,0.0003749,7]
[392937052,1762157434554,-236.13740761,0.0003749,7]
[392937053,1762157434563,-501.86258371,0.0003749,12]
[392937054,1762157434573,-500.0,0.0003749,2]
[392937055,1762157434582,-507.6805236,0.0003749,2]
[392937056,1762157434592,-500.0,0.0003749,7]
[392937057,1762157434601,-585.31604668,0.0003749,7]
[392937058,1762157434610,-7015.57,0.0003749,3]
[392937059,1762157434620,-7015.57,0.0003749,3]
[392937060,1762157434629,-7015.57,0.0003749,3]
[392937061,1762157434641,-7015.57,0.0003749,3]
[392937062,1762157434652,-7015.57,0.0003749,3]
[392937063,1762157434662,-7015.57,0.0003749,3]
[392937064,1762157434671,-7015.57,0.0003749,3]
[392937065,1762157434681,-7015.57,0.0003749,3]
[392937066,1762157434690,-7015.57,0.0003749,3]
[392937067,1762157434701,-7015.57,0.0003749,3]
[392937068,1762157434711,-7015.57,0.0003749,3]
[392937069,1762157434720,-7015.57,0.0003749,3]
[392937070,1762157434729,-7015.57,0.0003749,3]
[392937071,1762157434739,-7015.57,0.0003749,3]
[392937072,1762157434748,-7015.57,0.0003749,3]
[392937073,1762157434758,-7015.57,0.0003749,3]
[392937074,1762157434767,-7015.57,0.0003749,3]
[392937075,1762157434777,-7015.57,0.0003749,3]
[392937076,1762157434786,-7015.57,0.0003749,3]
[392937077,1762157434795,-7015.57,0.0003749,3]
[392937078,1762157434804,-7015.57,0.0003749,3]
[392937079,1762157434814,-7015.57,0.0003749,3]
[392937080,1762157434823,-7015.57,0.0003749,3]
[392937081,1762157434832,-7015.71260689,0.0003749,3]
[392937082,1762157434842,-500.0,0.0003749,14]
[392937083,1762157434852,-500.0,0.0003749,7]
[392937084,1762157434861,-474.32935782,0.0003749,12]
[392937085,1762157434871,-500.0,0.0003749,3]
[392937086,1762157434880,-500.0,0.0003749,3]
[392937087,1762157434889,-500.0,0.0003749,3]
[392937088,1762157434898,-500.0,0.0003749,3]
[392937089,1762157434907,-500.0,0.0003749,3]
[392937090,1762157434916,-500.0,0.0003749,3]
[392937091,1762157434926,-500.0,0.0003749,3]
[392937092,1762157434935,-500.0,0.0003749,3]
[392937093,1762157434944,-500.0,0.0003749,3]
[392937094,1762157434954,-500.0,0.0003749,3]
[392937095,1762157434963,-500.0,0.0003749,3]
[392937096,1762157434973,-500.0,0.0003749,3]
[392937097,1762157434982,-500.0,0.0003749,3]
[392937098,1762157434991,-500.0,0.0003749,3]
[392937099,1762157435001,-500.0,0.0003749,3]
[392937100,1762157435010,-500.0,0.0003749,3]
[392937101,1762157435020,-500.0,0.0003749,3]
[392937102,1762157435029,-500.0,0.0003749,3]
[392937103,1762157435038,-500.0,0.0003749,3]
[392937104,1762157435048,-500.0,0.0003749,3]
[392937105,1762157435059,-500.0,0.0003749,3]
[392937106,1762157435068,-168.12,0.0003749,3]
[392937107,1762157435079,-500.0,0.0003749,3]
[392937108,1762157435088,-500.0,0.0003749,3]
[392937109,1762157435097,-500.0,0.0003749,3]
[392937110,1762157435107,-500.0,0.0003749,3]
[392937111,1762157435116,-480.98989063,0.0003749,3]
[392937112,1762157435125,-500.79183068,0.0003749,14]
[392937113,1762157435137,-503.77661991,0.0003749,7]
[392937114,1762157435147,-502.61678661,0.0003749,7]
[392937115,1762157435156,-500.0,0.0003749,10]
[392937116,1762157435165,-335.8605844,0.0003749,10]
[392937117,1762157435175,-500.0,0.0003749,3]
[392937118,1762157435184,-500.0,0.0003749,3]
[392937119,1762157435193,-404.23119645,0.0003749,3]
[392937120,1762157435203,-502.07060923,0.0003749,7]
[392937121,1762157435212,-500.0,0.0003749,3]
[392937122,1762157435223,-500.0,0.0003749,3]
[392937123,1762157435233,-500.0,0.0003749,3]
[392937124,1762157435242,-152.63659401,0.0003749,3]
[392937125,1762157435252,-500.0,0.0003749,7]
[392937126,1762157435261,-500.0,0.0003749,7]
[392937127,1762157435271,-502.15049276,0.0003749,7]
[392937128,1762157435280,-500.0,0.0003749,7]
[392937129,1762157435290,-500.0,0.0003749,7]
[392937130,1762157435300,-500.0,0.0003749,10]
[392937131,1762157435309,-500.0,0.0003749,10]
[392937132,1762157435318,-455.41977084,0.0003749,10]
[392937133,1762157435328,-616.88146627,0.0003749,14]
[392937134,1762157435338,-500.0,0.0003749,7]
[392937135,1762157435347,-500.0,0.0003749,7]
[392937136,1762157435356,-497.95780202,0.0003749,60]
[392937137,1762157435365,-500.0,0.0003749,60]
[392937138,1762157435374,-500.0,0.0003749,60]
[392937139,1762157435383,-395.84,0.0003749,60]
[392937140,1762157435393,-500.0,0.0003749,60]
[392937141,1762157435402,-500.0,0.0003749,60]
[392937142,1762157435412,-500.0,0.0003749,60]
[392937143,1762157435421,-282.97136766,0.0003749,60]
[392937144,1762157435430,-500.0,0.0003749,60]
[392937145,1762157435439,-500.0,0.0003749,60]
[392937146,1762157435449,-160.68168639,0.0003749,60]
[392937147,1762157435458,-500.0,0.0003749,60]
[392937148,1762157435468,-500.0,0.0003749,60]
[392937149,1762157435478,-500.0,0.0003749,60]
[392937150,1762157435488,-500.0,0.0003749,60]
[392937151,1762157435497,-500.0,0.0003749,60]
[392937152,1762157435507,-500.0,0.0003749,60]
[392937153,1762157435517,-500.0,0.0003749,60]
[392937154,1762157435526,-500.0,0.0003749,60]
[392937155,1762157435535,-500.0,0.0003749,60]
[392937156,1762157435544,-500.0,0.0003749,60]
[392937157,1762157435554,-500.0,0.0003749,60]
[392937158,1762157435563,-500.0,0.0003749,60]
[392937159,1762157435573,-500.0,0.0003749,60]
[392937160,1762157435583,-500.0,0.0003749,60]
[392937161,1762157435592,-500.0,0.0003749,60]
[392937162,1762157435601,-500.0,0.0003749,60]
[392937163,1762157435610,-500.0,0.0003749,60]
[392937164,1762157435620,-500.0,0.0003749,60]
[392937165,1762157435629,-500.0,0.0003749,60]
[392937166,1762157435639,-500.0,0.0003749,60]
[392937167,1762157435648,-500.0,0.0003749,60]
[392937168,1762157435657,-500.0,0.0003749,60]
[392937169,1762157435666,-500.0,0.0003749,60]
[392937170,1762157435675,-500.0,0.0003749,60]
[392937171,1762157435684,-500.0,0.0003749,60]
[392937172,1762157435693,-500.0,0.0003749,60]
[392937173,1762157435702,-500.0,0.0003749,60]
[392937174,1762157435711,-500.0,0.0003749,60]
[392937175,1762157435720,-500.0,0.0003749,60]
[392937176,1762157435729,-500.0,0.0003749,60]
[392937177,1762157435739,-500.0,0.0003749,60]
[392937178,1762157435748,-254.78498236,0.0003749,60]
[392937179,1762157435757,-500.0,0.0003749,60]
[392937180,1762157435766,-500.0,0.0003749,60]
[392937181,1762157435775,-500.0,0.0003749,60]
[392937182,1762157435784,-500.0,0.0003749,60]
[392937183,1762157435793,-500.0,0.0003749,60]
[392937184,1762157435803,-500.0,0.0003749,60]
[392937185,1762157435812,-500.0,0.0003749,60]
[392937186,1762157435821,-500.0,0.0003749,60]
[392937187,1762157435909,-500.0,0.0003749,60]
[392937188,1762157435919,-500.0,0.0003749,60]
[392937189,1762157435928,-500.0,0.0003749,60]
[392937190,1762157435937,-500.0,0.0003749,60]
[392937191,1762157435946,-500.0,0.0003749,60]
[392937192,1762157435955,-500.0,0.0003749,60]
[392937193,1762157435964,-500.0,0.0003749,60]
[392937194,1762157435975,-500.0,0.0003749,60]
[392937195,1762157435985,-500.0,0.0003749,60]
[392937196,1762157435994,-500.0,0.0003749,60]
[392937197,1762157436003,-500.0,0.0003749,60]
[392937198,1762157436011,-500.0,0.0003749,60]
[392937199,1762157436020,-500.0,0.0003749,60]
[392937200,1762157436029,-500.0,0.0003749,60]
[392937201,1762157436039,-500.0,0.0003749,60]
[392937202,1762157436047,-500.0,0.0003749,60]
[392937203,1762157436056,-500.0,0.0003749,60]
[392937204,1762157436065,-500.0,0.0003749,60]
[392937205,1762157436074,-500.0,0.0003749,60]
[392937206,1762157436083,-500.0,0.0003749,60]
[392937207,1762157436092,-500.0,0.0003749,60]
[392937208,1762157436101,-500.0,0.0003749,60]
[392937209,1762157436110,-500.0,0.0003749,60]
[392937210,1762157436119,-500.0,0.0003749,60]
[392937211,1762157436128,-500.0,0.0003749,60]
[392937212,1762157436138,-500.0,0.0003749,60]
[392937213,1762157436151,-500.0,0.0003749,60]
[392937214,1762157436160,-500.0,0.0003749,60]